[Event "*** Titled Tuesday Blitz"]
[Site "Chess.com"]
[Date "2018.07.03"]
[Round "8"]
[White "Margency"]
[Black "albi1999"]
[Result "1/2-1/2"]
[WhiteElo "2657"]
[BlackElo "2524"]
[TimeControl "180+2"]
[EndTime "14:45:55 PDT"]
[Termination "Game drawn by repetition"]

1. e4 {[%clk 0:03:01.9]} 1... e5 {[%clk 0:03:00.7]} 2. Nf3 {[%clk 0:03:02.6]}
2... Nc6 {[%clk 0:03:02.1]} 3. Bc4 {[%clk 0:03:03.6]} 3... Bc5 {[%clk
0:03:02.3]} 4. d3 {[%clk 0:03:04]} 4... Nf6 {[%clk 0:03:02.9]} 5. O-O {[%clk
0:03:05.1]} 5... d6 {[%clk 0:03:04.3]} 6. c3 {[%clk 0:03:05.9]} 6... a6 {[%clk
0:03:05]} 7. Bb3 {[%clk 0:03:06.8]} 7... Ba7 {[%clk 0:03:05.9]} 8. Nbd2 {[%clk
0:03:06.9]} 8... O-O {[%clk 0:03:06.6]} 9. h3 {[%clk 0:03:07.7]} 9... Re8 {[%clk
0:03:07.8]} 10. Re1 {[%clk 0:03:08.8]} 10... Be6 {[%clk 0:03:08.6]} 11. Bc2
{[%clk 0:02:57.4]} 11... h6 {[%clk 0:03:07.4]} 12. Nf1 {[%clk 0:02:57.8]} 12...
d5 {[%clk 0:03:08.4]} 13. exd5 {[%clk 0:02:58.6]} 13... Nxd5 {[%clk 0:03:08.2]}
14. Ng3 {[%clk 0:02:58.4]} 14... Nf4 {[%clk 0:02:29.7]} 15. Bxf4 {[%clk
0:02:45.6]} 15... exf4 {[%clk 0:02:29.1]} 16. Ne2 {[%clk 0:02:47]} 16... Qf6
{[%clk 0:02:14.4]} 17. d4 {[%clk 0:02:46.1]} 17... Ne7 {[%clk 0:02:15.5]} 18.
Qd2 {[%clk 0:02:37.3]} 18... g5 {[%clk 0:02:10.3]} 19. Nc1 {[%clk 0:02:16.4]}
19... c5 {[%clk 0:02:07.5]} 20. dxc5 {[%clk 0:01:44.8]} 20... Rad8 {[%clk
0:01:59.4]} 21. Nd3 {[%clk 0:01:42.5]} 21... Bxc5 {[%clk 0:01:56.8]} 22. Rad1
{[%clk 0:01:42.7]} 22... Ng6 {[%clk 0:01:43.2]} 23. Qc1 {[%clk 0:01:39.9]} 23...
Bd6 {[%clk 0:01:39.5]} 24. Nd4 {[%clk 0:01:33.2]} 24... Bc8 {[%clk 0:01:35]} 25.
Rxe8+ {[%clk 0:01:32.9]} 25... Rxe8 {[%clk 0:01:36.9]} 26. Re1 {[%clk
0:01:33.9]} 26... Rd8 {[%clk 0:01:35.7]} 27. Qd1 {[%clk 0:01:26.2]} 27... Bb8
{[%clk 0:01:27.5]} 28. Nc5 {[%clk 0:01:13.8]} 28... Ba7 {[%clk 0:01:17.1]} 29.
Ncb3 {[%clk 0:01:02]} 29... Be6 {[%clk 0:01:08]} 30. Qf3 {[%clk 0:00:58.9]}
30... Bc8 {[%clk 0:01:02.7]} 31. Qe4 {[%clk 0:00:54.5]} 31... Bb8 {[%clk
0:00:56.6]} 32. Nc5 {[%clk 0:00:53.6]} 32... b6 {[%clk 0:00:54.2]} 33. Ncb3
{[%clk 0:00:48.4]} 33... Bd7 {[%clk 0:00:48.1]} 34. Nd2 {[%clk 0:00:44.9]} 34...
Re8 {[%clk 0:00:47.7]} 35. Qxe8+ {[%clk 0:00:46]} 35... Bxe8 {[%clk 0:00:49.6]}
36. Rxe8+ {[%clk 0:00:47.2]} 36... Kg7 {[%clk 0:00:50.9]} 37. Rxb8 {[%clk
0:00:45.3]} 37... Qe5 {[%clk 0:00:49]} 38. Rxb6 {[%clk 0:00:37.3]} 38... Qe1+
{[%clk 0:00:48.1]} 39. Nf1 {[%clk 0:00:38.4]} 39... Nh4 {[%clk 0:00:45.5]} 40.
Nf5+ {[%clk 0:00:38.5]} 40... Nxf5 {[%clk 0:00:46.6]} 41. Bxf5 {[%clk
0:00:40.1]} 41... a5 {[%clk 0:00:46.4]} 42. a3 {[%clk 0:00:39]} 42... Qe5 {[%clk
0:00:42.6]} 43. Bg4 {[%clk 0:00:37.8]} 43... Qc5 {[%clk 0:00:39.4]} 44. Rb7
{[%clk 0:00:37.7]} 44... Kg6 {[%clk 0:00:38.8]} 45. Bf3 {[%clk 0:00:37.4]} 45...
h5 {[%clk 0:00:36.9]} 46. a4 {[%clk 0:00:38]} 46... f5 {[%clk 0:00:34.1]} 47.
Rb5 {[%clk 0:00:38.6]} 47... Qc7 {[%clk 0:00:34.4]} 48. Bd5 {[%clk 0:00:37.6]}
48... g4 {[%clk 0:00:34]} 49. h4 {[%clk 0:00:38.4]} 49... g3 {[%clk 0:00:32.4]}
50. fxg3 {[%clk 0:00:31.3]} 50... fxg3 {[%clk 0:00:33.1]} 51. c4 {[%clk
0:00:29]} 51... Qf4 {[%clk 0:00:21.2]} 52. Bf3 {[%clk 0:00:28.1]} 52... Qd4+
{[%clk 0:00:20.6]} 53. Kh1 {[%clk 0:00:29]} 53... Qf2 {[%clk 0:00:21]} 54. Nxg3
{[%clk 0:00:28.4]} 54... Qxg3 {[%clk 0:00:21.9]} 55. c5 {[%clk 0:00:28.4]} 55...
Qxh4+ {[%clk 0:00:22.5]} 56. Kg1 {[%clk 0:00:29.7]} 56... Qe1+ {[%clk
0:00:23.8]} 57. Kh2 {[%clk 0:00:31]} 57... h4 {[%clk 0:00:24.9]} 58. c6 {[%clk
0:00:29.7]} 58... Kg5 {[%clk 0:00:25.7]} 59. Rb7 {[%clk 0:00:26.1]} 59... Qg3+
{[%clk 0:00:26]} 60. Kh1 {[%clk 0:00:26.5]} 60... Kf4 {[%clk 0:00:23.1]} 61. c7
{[%clk 0:00:24.7]} 61... Qe1+ {[%clk 0:00:20.5]} 62. Kh2 {[%clk 0:00:25.5]}
62... Qg3+ {[%clk 0:00:21]} 63. Kh1 {[%clk 0:00:26.2]} 63... Qe1+ {[%clk
0:00:13.5]} 64. Kh2 {[%clk 0:00:27.5]} 64... Qg3+ {[%clk 0:00:14.3]} 65. Kh1
{[%clk 0:00:28.9]} 65... Qe1+ {[%clk 0:00:10.2]} 66. Kh2 {[%clk 0:00:30.1]}
1/2-1/2

[Event "*** Titled Tuesday Blitz"]
[Site "Chess.com"]
[Date "2018.07.03"]
[Round "8"]
[White "ahmadzada13"]
[Black "vovachesss"]
[Result "0-1"]
[WhiteElo "2485"]
[BlackElo "2437"]
[TimeControl "180+2"]
[EndTime "14:46:04 PDT"]
[Termination "vovachesss won by resignation"]

1. e4 {[%clk 0:03:01.9]} 1... c5 {[%clk 0:02:52.1]} 2. Nf3 {[%clk 0:03:01.6]}
2... Nc6 {[%clk 0:02:49.7]} 3. Bb5 {[%clk 0:03:01.4]} 3... g6 {[%clk 0:02:49.8]}
4. Bxc6 {[%clk 0:03:02.3]} 4... dxc6 {[%clk 0:02:45]} 5. d3 {[%clk 0:03:02.4]}
5... Bg7 {[%clk 0:02:46.4]} 6. O-O {[%clk 0:03:03.1]} 6... Bg4 {[%clk
0:02:45.9]} 7. h3 {[%clk 0:03:04.3]} 7... Bxf3 {[%clk 0:02:46.9]} 8. Qxf3 {[%clk
0:03:05.7]} 8... e5 {[%clk 0:02:48.7]} 9. Nc3 {[%clk 0:03:06.2]} 9... Nf6 {[%clk
0:02:48.8]} 10. Be3 {[%clk 0:03:06.8]} 10... Qe7 {[%clk 0:02:48]} 11. Qe2 {[%clk
0:03:04]} 11... Nh5 {[%clk 0:02:45.9]} 12. Qd2 {[%clk 0:03:01.4]} 12... O-O
{[%clk 0:02:43.5]} 13. Bh6 {[%clk 0:02:51.1]} 13... Rad8 {[%clk 0:02:42.2]} 14.
b3 {[%clk 0:02:48.4]} 14... Nf4 {[%clk 0:02:24.2]} 15. Bxf4 {[%clk 0:02:17.7]}
15... exf4 {[%clk 0:02:23.1]} 16. Rae1 {[%clk 0:02:10.3]} 16... g5 {[%clk
0:02:12.2]} 17. Ne2 {[%clk 0:02:07.7]} 17... Qe6 {[%clk 0:02:05.5]} 18. Kh1
{[%clk 0:02:02.8]} 18... f5 {[%clk 0:01:41]} 19. exf5 {[%clk 0:01:58.5]} 19...
Qxf5 {[%clk 0:01:41.2]} 20. Ng1 {[%clk 0:01:49.6]} 20... h5 {[%clk 0:01:40.2]}
21. Qe2 {[%clk 0:01:46.9]} 21... Rd6 {[%clk 0:01:33.1]} 22. Qxh5 {[%clk
0:01:41.2]} 22... Rh6 {[%clk 0:01:32.5]} 23. Qe2 {[%clk 0:01:14.9]} 23... g4
{[%clk 0:01:24.7]} 24. Qe4 {[%clk 0:00:48.9]} 24... Qh5 {[%clk 0:01:03.1]} 25.
f3 {[%clk 0:00:36.6]} 25... gxh3 {[%clk 0:01:00.2]} 26. Nxh3 {[%clk 0:00:36.4]}
26... Qh4 {[%clk 0:00:57]} 27. Qe7 {[%clk 0:00:26.9]} 27... Qg3 {[%clk
0:00:56.6]} 28. Qd7 {[%clk 0:00:21.4]} 28... Rg6 {[%clk 0:00:35.7]} 29. Re2
{[%clk 0:00:17.7]} 29... Rf7 {[%clk 0:00:36.2]} 30. Qe8+ {[%clk 0:00:16.5]}
30... Bf8 {[%clk 0:00:37.2]} 31. Qc8 {[%clk 0:00:06.5]} 31... Rh7 {[%clk
0:00:37.3]} 32. Rff2 {[%clk 0:00:04.1]} 32... Rgh6 {[%clk 0:00:33.3]} 33. Qg4+
{[%clk 0:00:03.5]} 33... Rg6 {[%clk 0:00:13.3]} 34. Qxg3 {[%clk 0:00:04.7]}
34... fxg3 {[%clk 0:00:14.6]} 35. Rf1 {[%clk 0:00:06.1]} 35... b5 {[%clk
0:00:13.6]} 36. Rfe1 {[%clk 0:00:06.1]} 36... c4 {[%clk 0:00:10.6]} 37. bxc4
{[%clk 0:00:06.3]} 37... bxc4 {[%clk 0:00:12.4]} 38. dxc4 {[%clk 0:00:06.2]}
38... Bc5 {[%clk 0:00:11.3]} 39. Re8+ {[%clk 0:00:07]} 39... Kf7 {[%clk
0:00:12.2]} 40. Rc8 {[%clk 0:00:06]} 40... Rxh3+ {[%clk 0:00:12.4]} 41. gxh3
{[%clk 0:00:06]} 41... g2+ {[%clk 0:00:13.9]} 42. Kh2 {[%clk 0:00:07.4]} 42...
g1=Q+ {[%clk 0:00:15.3]} 43. Rxg1 {[%clk 0:00:08.7]} 43... Bxg1+ {[%clk
0:00:16.5]} 44. Kh1 {[%clk 0:00:10.3]} 44... Bd4 {[%clk 0:00:16.7]} 45. Rc7+
{[%clk 0:00:10]} 45... Ke8 {[%clk 0:00:17]} 46. f4 {[%clk 0:00:10.7]} 46... Kd8
{[%clk 0:00:17.7]} 47. Rh7 {[%clk 0:00:09.1]} 47... a5 {[%clk 0:00:18.1]} 48.
Rh5 {[%clk 0:00:05.4]} 48... Rg1+ {[%clk 0:00:14.2]} 49. Kh2 {[%clk 0:00:06]}
49... Rc1 {[%clk 0:00:14.6]} 50. Rxa5 {[%clk 0:00:06.6]} 50... Rxc2+ {[%clk
0:00:15.9]} 51. Kg3 {[%clk 0:00:08.2]} 51... Rxc4 {[%clk 0:00:17.2]} 52. Kg4
{[%clk 0:00:09.4]} 52... c5 {[%clk 0:00:17.8]} 53. Kf5 {[%clk 0:00:09.4]} 53...
Be3 {[%clk 0:00:18]} 54. Ra8+ {[%clk 0:00:08.2]} 54... Kc7 {[%clk 0:00:18.7]}
55. Ke6 {[%clk 0:00:07.4]} 55... Rxf4 {[%clk 0:00:17.8]} 56. Kd5 {[%clk
0:00:07.9]} 56... Rd4+ {[%clk 0:00:17.7]} 57. Ke5 {[%clk 0:00:08.9]} 57... Rh4
{[%clk 0:00:16.4]} 58. Rg8 {[%clk 0:00:05.7]} 58... c4 {[%clk 0:00:15.8]} 59.
Rg2 {[%clk 0:00:04.3]} 59... c3 {[%clk 0:00:16.1]} 60. Rc2 {[%clk 0:00:03.7]}
60... Bd2 {[%clk 0:00:17.3]} 0-1

[Event "*** Titled Tuesday Blitz"]
[Site "Chess.com"]
[Date "2018.07.03"]
[Round "8"]
[White "Martins-BR"]
[Black "Keures"]
[Result "0-1"]
[WhiteElo "2296"]
[BlackElo "2155"]
[TimeControl "180+2"]
[EndTime "14:46:49 PDT"]
[Termination "Keures won by resignation"]

1. e4 {[%clk 0:03:01.9]} 1... e6 {[%clk 0:03:00.9]} 2. d4 {[%clk 0:03:02]} 2...
d5 {[%clk 0:03:02]} 3. Nc3 {[%clk 0:03:02.9]} 3... Bb4 {[%clk 0:03:01.8]} 4. e5
{[%clk 0:03:03]} 4... b6 {[%clk 0:03:02.8]} 5. Qg4 {[%clk 0:03:01.6]} 5... Bf8
{[%clk 0:03:02.5]} 6. Nf3 {[%clk 0:02:58.9]} 6... Qd7 {[%clk 0:03:02.9]} 7. Bg5
{[%clk 0:02:50.9]} 7... a5 {[%clk 0:03:00]} 8. a3 {[%clk 0:02:39]} 8... Ba6
{[%clk 0:03:00]} 9. Bxa6 {[%clk 0:02:38.4]} 9... Nxa6 {[%clk 0:03:01.9]} 10. O-O
{[%clk 0:02:37.9]} 10... Ne7 {[%clk 0:02:54.5]} 11. h4 {[%clk 0:02:30.4]} 11...
h5 {[%clk 0:02:48.4]} 12. Qf4 {[%clk 0:02:27.9]} 12... Nf5 {[%clk 0:02:47.7]}
13. Rad1 {[%clk 0:02:26]} 13... Be7 {[%clk 0:02:24]} 14. Bxe7 {[%clk 0:02:24.5]}
14... Qxe7 {[%clk 0:02:25]} 15. Nxd5 {[%clk 0:02:21]} 15... exd5 {[%clk
0:02:19]} 16. Qxf5 {[%clk 0:02:21.3]} 16... g6 {[%clk 0:02:15.5]} 17. Qf4 {[%clk
0:02:20]} 17... O-O-O {[%clk 0:02:08.8]} 18. Ng5 {[%clk 0:02:18.5]} 18... Rhf8
{[%clk 0:01:54.1]} 19. Rde1 {[%clk 0:02:16.3]} 19... f6 {[%clk 0:01:46.8]} 20.
exf6 {[%clk 0:02:15.5]} 20... Qxf6 {[%clk 0:01:48.7]} 21. Qxf6 {[%clk
0:02:14.3]} 21... Rxf6 {[%clk 0:01:50.6]} 22. g3 {[%clk 0:02:10.6]} 22... Nb8
{[%clk 0:01:40.7]} 23. Re7 {[%clk 0:02:04.1]} 23... Nc6 {[%clk 0:01:39.4]} 24.
Re6 {[%clk 0:01:57.7]} 24... Rxe6 {[%clk 0:01:30.9]} 25. Nxe6 {[%clk 0:01:59.6]}
25... Re8 {[%clk 0:01:20.2]} 26. Nf4 {[%clk 0:01:59.9]} 26... Nxd4 {[%clk
0:01:14.8]} 27. Nxd5 {[%clk 0:02:00.6]} 27... c6 {[%clk 0:00:51.8]} 28. Ne3
{[%clk 0:01:54.1]} 28... Kc7 {[%clk 0:00:38.6]} 29. Rd1 {[%clk 0:01:50.7]} 29...
c5 {[%clk 0:00:39.7]} 30. c3 {[%clk 0:01:49.2]} 30... Nf3+ {[%clk 0:00:29.4]}
31. Kg2 {[%clk 0:01:48.6]} 31... Ne5 {[%clk 0:00:30.9]} 32. Nd5+ {[%clk
0:01:48]} 32... Kc6 {[%clk 0:00:29.5]} 33. Nf4 {[%clk 0:01:47.1]} 33... Nc4
{[%clk 0:00:20.4]} 34. Rb1 {[%clk 0:01:41.8]} 34... Rg8 {[%clk 0:00:17.9]} 35.
a4 {[%clk 0:01:39.9]} 35... g5 {[%clk 0:00:18.9]} 36. hxg5 {[%clk 0:01:40.9]}
36... Rxg5 {[%clk 0:00:20.3]} 37. b3 {[%clk 0:01:40.9]} 37... Nd2 {[%clk
0:00:21.3]} 38. Rb2 {[%clk 0:01:39.5]} 38... Ne4 {[%clk 0:00:22.4]} 39. Re2
{[%clk 0:01:30.7]} 39... Nxc3 {[%clk 0:00:22.6]} 40. Re6+ {[%clk 0:01:31]} 40...
Kc7 {[%clk 0:00:20.4]} 41. Rh6 {[%clk 0:01:31.8]} 41... Kb7 {[%clk 0:00:21.2]}
42. Rxh5 {[%clk 0:01:31.7]} 42... Rxh5 {[%clk 0:00:22.5]} 43. Nxh5 {[%clk
0:01:32.7]} 43... b5 {[%clk 0:00:22.7]} 44. axb5 {[%clk 0:01:32.5]} 44... Nxb5
{[%clk 0:00:24.6]} 45. g4 {[%clk 0:01:33.1]} 45... c4 {[%clk 0:00:25.9]} 46.
bxc4 {[%clk 0:01:33.6]} 46... a4 {[%clk 0:00:26.9]} 47. Nf4 {[%clk 0:01:06.3]}
47... a3 {[%clk 0:00:23.4]} 48. Nd3 {[%clk 0:01:05.7]} 48... a2 {[%clk
0:00:17.4]} 49. Nc5+ {[%clk 0:01:05.5]} 49... Kc6 {[%clk 0:00:18.3]} 50. Nb3
{[%clk 0:01:02.8]} 50... Nd6 {[%clk 0:00:19.3]} 51. c5 {[%clk 0:00:56.1]} 51...
Ne4 {[%clk 0:00:19.4]} 52. f4 {[%clk 0:00:49.3]} 52... Nxc5 {[%clk 0:00:18.9]}
53. Na1 {[%clk 0:00:50.2]} 53... Kd5 {[%clk 0:00:19.8]} 54. Kf3 {[%clk
0:00:50.3]} 54... Nd3 {[%clk 0:00:20.4]} 55. g5 {[%clk 0:00:49.1]} 55... Ke6
{[%clk 0:00:20.4]} 56. Ke4 {[%clk 0:00:48.8]} 56... Nf2+ {[%clk 0:00:21.4]} 57.
Ke3 {[%clk 0:00:49.3]} 57... Nh3 {[%clk 0:00:21.3]} 58. g6 {[%clk 0:00:42.4]}
58... Kf6 {[%clk 0:00:22]} 59. f5 {[%clk 0:00:42.4]} 59... Ng5 {[%clk
0:00:21.6]} 60. Kf4 {[%clk 0:00:41.9]} 60... Nh3+ {[%clk 0:00:22.4]} 61. Ke4
{[%clk 0:00:41.3]} 61... Ng5+ {[%clk 0:00:22.9]} 62. Kf4 {[%clk 0:00:40.7]}
62... Nh3+ {[%clk 0:00:23.9]} 63. Kg4 {[%clk 0:00:41.2]} 63... Nf2+ {[%clk
0:00:24.8]} 64. Kh5 {[%clk 0:00:41.1]} 64... Ne4 {[%clk 0:00:22.6]} 65. Kh6
{[%clk 0:00:40.6]} 65... Nd6 {[%clk 0:00:21.4]} 66. Kh7 {[%clk 0:00:37.7]} 66...
Nxf5 {[%clk 0:00:22.2]} 67. Nb3 {[%clk 0:00:37.5]} 67... Ng7 {[%clk 0:00:20.7]}
68. Na1 {[%clk 0:00:37.9]} 68... Ne6 {[%clk 0:00:21.6]} 69. Kh6 {[%clk 0:00:35]}
69... Ng7 {[%clk 0:00:20.9]} 70. Nb3 {[%clk 0:00:33.6]} 70... Nf5+ {[%clk
0:00:22]} 71. Kh7 {[%clk 0:00:34.2]} 71... Ng7 {[%clk 0:00:19.6]} 72. Kh6 {[%clk
0:00:33.3]} 72... Ne6 {[%clk 0:00:19.1]} 73. Na1 {[%clk 0:00:32]} 73... Ke7
{[%clk 0:00:18.5]} 74. Nb3 {[%clk 0:00:27.3]} 74... Kd6 {[%clk 0:00:19.4]} 75.
g7 {[%clk 0:00:20.6]} 75... Nxg7 {[%clk 0:00:19]} 76. Kxg7 {[%clk 0:00:21.6]}
76... Kd5 {[%clk 0:00:20.9]} 77. Kf6 {[%clk 0:00:21.3]} 77... Kc4 {[%clk
0:00:22]} 78. Na1 {[%clk 0:00:21.9]} 78... Kc3 {[%clk 0:00:23.4]} 79. Ke5 {[%clk
0:00:23]} 79... Kb2 {[%clk 0:00:25.3]} 80. Kd4 {[%clk 0:00:21.7]} 80... Kxa1
{[%clk 0:00:26.1]} 0-1

[Event "*** Titled Tuesday Blitz"]
[Site "Chess.com"]
[Date "2018.07.03"]
[Round "8"]
[White "kuli4ik"]
[Black "David_Paravyan"]
[Result "0-1"]
[WhiteElo "2746"]
[BlackElo "2725"]
[TimeControl "180+2"]
[EndTime "14:46:53 PDT"]
[Termination "David_Paravyan won on time"]

1. d4 {[%clk 0:02:58.9]} 1... Nf6 {[%clk 0:03:00.5]} 2. Bg5 {[%clk 0:02:59.3]}
2... c5 {[%clk 0:02:58.7]} 3. d5 {[%clk 0:03:00.1]} 3... e5 {[%clk 0:02:55.5]}
4. Nc3 {[%clk 0:02:59.2]} 4... d6 {[%clk 0:02:56]} 5. e4 {[%clk 0:02:59.6]} 5...
Be7 {[%clk 0:02:57.5]} 6. Bb5+ {[%clk 0:02:56.1]} 6... Nbd7 {[%clk 0:02:49.9]}
7. Be3 {[%clk 0:02:55.6]} 7... a6 {[%clk 0:02:46.4]} 8. Bxd7+ {[%clk 0:02:54.1]}
8... Bxd7 {[%clk 0:02:39.6]} 9. f3 {[%clk 0:02:54.7]} 9... b5 {[%clk 0:02:39.1]}
10. Nge2 {[%clk 0:02:52.9]} 10... O-O {[%clk 0:02:34.3]} 11. O-O {[%clk
0:02:53.7]} 11... b4 {[%clk 0:02:32.2]} 12. Nb1 {[%clk 0:02:54.1]} 12... a5
{[%clk 0:02:23.6]} 13. Nd2 {[%clk 0:02:54.7]} 13... Bb5 {[%clk 0:02:23.3]} 14.
Rf2 {[%clk 0:02:53]} 14... Ne8 {[%clk 0:02:14]} 15. c4 {[%clk 0:02:52]} 15...
Ba6 {[%clk 0:02:09.8]} 16. g4 {[%clk 0:02:50.6]} 16... g6 {[%clk 0:02:06.7]} 17.
Rg2 {[%clk 0:02:49.2]} 17... Ng7 {[%clk 0:02:03.5]} 18. Qc2 {[%clk 0:02:48.6]}
18... Kh8 {[%clk 0:02:02.7]} 19. Kh1 {[%clk 0:02:47.8]} 19... Bg5 {[%clk
0:02:02.6]} 20. Qd3 {[%clk 0:02:41.9]} 20... h6 {[%clk 0:02:01.9]} 21. Rag1
{[%clk 0:02:40.8]} 21... a4 {[%clk 0:02:02.5]} 22. Nf1 {[%clk 0:02:34.4]} 22...
Ra7 {[%clk 0:02:02.6]} 23. Bf2 {[%clk 0:02:28.4]} 23... Bc8 {[%clk 0:02:00.3]}
24. h3 {[%clk 0:02:27.4]} 24... f5 {[%clk 0:01:49.7]} 25. gxf5 {[%clk
0:02:24.1]} 25... gxf5 {[%clk 0:01:48.1]} 26. h4 {[%clk 0:02:25.3]} 26... Bxh4
{[%clk 0:01:20.9]} 27. Qd2 {[%clk 0:01:21.8]} 27... Bg5 {[%clk 0:01:08.1]} 28.
Be3 {[%clk 0:01:22.7]} 28... f4 {[%clk 0:01:07.1]} 29. Bf2 {[%clk 0:01:23.5]}
29... Ne8 {[%clk 0:01:02.3]} 30. Rh2 {[%clk 0:01:13.6]} 30... Rh7 {[%clk
0:01:00.3]} 31. Rgg2 {[%clk 0:01:13.5]} 31... Nf6 {[%clk 0:00:58.6]} 32. Ng1
{[%clk 0:01:13.7]} 32... Bd7 {[%clk 0:00:51.9]} 33. Nh3 {[%clk 0:01:14.1]} 33...
Rg8 {[%clk 0:00:44.9]} 34. Qe2 {[%clk 0:01:08.6]} 34... Rgg7 {[%clk 0:00:45.2]}
35. Nd2 {[%clk 0:01:06]} 35... Qc8 {[%clk 0:00:39.9]} 36. Ng1 {[%clk 0:01:03.2]}
36... Kg8 {[%clk 0:00:40.4]} 37. Qe1 {[%clk 0:01:02.4]} 37... Kf8 {[%clk
0:00:37.9]} 38. Bh4 {[%clk 0:01:03]} 38... Ke8 {[%clk 0:00:38.1]} 39. Bf2 {[%clk
0:00:51.4]} 39... Kd8 {[%clk 0:00:38.9]} 40. Qd1 {[%clk 0:00:51.4]} 40... Kc7
{[%clk 0:00:39.6]} 41. Qe1 {[%clk 0:00:50.5]} 41... Kb7 {[%clk 0:00:40.5]} 42.
a3 {[%clk 0:00:44.9]} 42... b3 {[%clk 0:00:34.6]} 43. Nb1 {[%clk 0:00:45.8]}
43... Qa8 {[%clk 0:00:27.8]} 44. Nc3 {[%clk 0:00:41.5]} 44... Qa6 {[%clk
0:00:28.3]} 45. Qf1 {[%clk 0:00:39.6]} 45... Kc8 {[%clk 0:00:28.5]} 46. Qe2
{[%clk 0:00:39.7]} 46... Kb7 {[%clk 0:00:29.1]} 47. Qd3 {[%clk 0:00:40.7]} 47...
h5 {[%clk 0:00:26.4]} 48. Nh3 {[%clk 0:00:38.1]} 48... Bh6 {[%clk 0:00:25.7]}
49. Ng1 {[%clk 0:00:29]} 49... Rxg2 {[%clk 0:00:16.3]} 50. Rxg2 {[%clk
0:00:30.9]} 50... Rg7 {[%clk 0:00:17.8]} 51. Bh4 {[%clk 0:00:30]} 51... Rxg2
{[%clk 0:00:17.7]} 52. Kxg2 {[%clk 0:00:31.9]} 52... Ne8 {[%clk 0:00:15.7]} 53.
Nge2 {[%clk 0:00:32.1]} 53... Nc7 {[%clk 0:00:16.5]} 54. Ng1 {[%clk 0:00:26.5]}
54... Na8 {[%clk 0:00:16.8]} 55. Nb5 {[%clk 0:00:24.3]} 55... Bf8 {[%clk
0:00:17.2]} 56. Ne2 {[%clk 0:00:24.2]} 56... Nb6 {[%clk 0:00:17.3]} 57. Nec3
{[%clk 0:00:25.4]} 57... Qa5 {[%clk 0:00:11.9]} 58. Qf1 {[%clk 0:00:19.6]} 58...
Qa8 {[%clk 0:00:11.8]} 59. Kh2 {[%clk 0:00:18.5]} 59... Qe8 {[%clk 0:00:12.8]}
60. Qe2 {[%clk 0:00:13.5]} 60... Be7 {[%clk 0:00:11.6]} 61. Bf2 {[%clk
0:00:08.5]} 61... Qg6 {[%clk 0:00:10.6]} 62. Qf1 {[%clk 0:00:09.6]} 62... h4
{[%clk 0:00:11.5]} 63. Be1 {[%clk 0:00:08]} 63... h3 {[%clk 0:00:12.3]} 64. Bf2
{[%clk 0:00:04.9]} 64... Nxc4 {[%clk 0:00:12.3]} 0-1